[Event "Polish Youth G18 Championship 2023"]
[Site "Jastrzebia Gora"]
[Date "2023.03.18"]
[Round "8.7"]
[White "Jedrzejko, Martyna"]
[Black "Krzyzosiak, Marta"]
[Result "1/2-1/2"]
[ECO "B96"]
[WhiteElo "1629"]
[BlackElo "1778"]
[Annotator "NA RC COMBH"]
[PlyCount "63"]
[EventDate "2023.03.11"]
[EventType "swiss"]
[EventCountry "POL"]
[SourceTitle "playchess.com"]
[Source "ChessBase"]
[SourceQuality "1"]
[TimeControl "40/5400+30:1800+30"]

1. e4 {[%emt 0:00:03]} c5 {[%emt 0:00:06]} 2. Nf3 {[%emt 0:00:14]} d6 {[%emt 0:00:17]} 3. d4 {[%emt 0:00:19]} cxd4 {[%emt 0:00:18]} 4. Nxd4 {[%emt 0:00:27]} Nf6 {[%emt 0:00:11]} 5. Nc3 {[%emt 0:00:25]} a6 {[%emt 0:00:15]} 6. Bg5 {[%emt 0:01:05]} e6 {[%emt 0:00:31]} 7. f4 {[%emt 0:00:38]} h6 {[%emt 0:01:00]} 8. Bh4 {[%emt 0:00:31]} Qb6 {[%emt 0:00:31]} 9. Qd2 {[%emt 0:03:53]} Qxb2 {[%emt 0:02:35]} 10. Rb1 {[%emt 0:01:05]} Qa3 {[%emt 0:00:14]} 11. e5 {[%emt 0:07:14]} dxe5 {[%emt 0:02:56]} 12. fxe5 {[%emt 0:01:40]} g5 {[%emt 0:02:43]} 13. exf6 {[%emt 0:03:18]} gxh4 {[%emt 0:00:15]} 14. Be2 {[%emt 0:05:18]} Nd7 {[%emt 0:06:12]} 15. O-O {[%emt 0:04:16]} Qa5 {[%emt 0:09:47]} 16. Rbd1 {[%emt 0:06:14]} h3 {[%emt 0:02:41]} 17. g3 {[%emt 0:02:56]} Bb4 {[%emt 0:06:29]} 18. Qe3 {[%emt 0:17:49]} Bxc3 {[%emt 0:08:05]} 19. Nxe6 {[%emt 0:02:17]} fxe6 {[%emt 0:04:21]} 20. Qxe6+ {[%emt 0:00:13]} Kd8 {[%emt 0:00:16]} 21. Qe7+ {[%emt 0:00:56]} Kc7 {[%emt 0:00:17]} 22. Qd6+ {[%emt 0:00:42]} Kd8 {[%emt 0:00:24]} 23. f7 {[%emt 0:00:58]} Bg7 {[%emt 0:02:20]} 24. Bg4 {[%emt 0:01:18]} Qb5 {[%emt 0:01:48]} 25. f8=Q+ {[%emt 0:02:59]} Rxf8 {[%emt 0:00:10]} 26. Rxf8+ {[%emt 0:00:23]} Bxf8 {[%emt 0:00:08]} 27. Qxf8+ {[%emt 0:00:14]} Kc7 {[%emt 0:00:25]} 28. Qd6+ {[%emt 0:00:14]} Kd8 {[%emt 0:00:14]} 29. Qf8+ {[%emt 0:01:32]} Kc7 {[%emt 0:00:14]} 30. Qd6+ {[%emt 0:00:09]} Kd8 {[%emt 0:00:11]} 31. Qf8+ {[%emt 0:00:12]} Kc7 {[%emt 0:00:25]} 32. Qd6+ {[%emt 0:00:36]} 1/2-1/2

[Event "Polish Youth G18 Championship 2023"]
[Site "Jastrzebia Gora"]
[Date "2023.03.18"]
[Round "8.8"]
[White "Mroz, Lena"]
[Black "Obrochta, Lena"]
[Result "1/2-1/2"]
[ECO "B42"]
[WhiteElo "1635"]
[BlackElo "1673"]
[Annotator "NA RC COMBH"]
[PlyCount "78"]
[EventDate "2023.03.11"]
[EventType "swiss"]
[EventCountry "POL"]
[SourceTitle "playchess.com"]
[Source "ChessBase"]
[SourceQuality "1"]
[TimeControl "40/5400+30:1800+30"]

1. e4 {[%emt 0:00:02]} c5 {[%emt 0:00:16]} 2. Nf3 {[%emt 0:00:06]} e6 {[%emt 0:00:06]} 3. d4 {[%emt 0:00:08]} cxd4 {[%emt 0:00:06]} 4. Nxd4 {[%emt 0:00:04]} a6 {[%emt 0:00:07]} 5. Bd3 {[%emt 0:00:15]} Bc5 {[%emt 0:00:08]} 6. Nb3 {[%emt 0:00:07]} Be7 {[%emt 0:00:05]} 7. Qg4 {[%emt 0:00:57]} g6 {[%emt 0:00:11]} 8. Qe2 {[%emt 0:00:08]} d6 {[%emt 0:00:54]} 9. O-O {[%emt 0:00:59]} Nd7 {[%emt 0:02:11]} 10. a4 {[%emt 0:05:09]} Ne5 {[%emt 0:01:32]} 11. Na3 {[%emt 0:06:51]} Nf6 {[%emt 0:04:52]} 12. Bh6 {[%emt 0:06:16]} Nfg4 {[%emt 0:02:01]} 13. Bd2 {[%emt 0:01:02]} O-O {[%emt 0:10:50]} 14. h3 {[%emt 0:07:21]} Nf6 {[%emt 0:04:43]} 15. f4 {[%emt 0:07:34]} Nxd3 {[%emt 0:01:33]} 16. Qxd3 {[%emt 0:00:33]} d5 {[%emt 0:08:23]} 17. e5 {[%emt 0:06:03]} Ne4 {[%emt 0:01:56]} 18. Be3 {[%emt 0:00:57]} Bd7 {[%emt 0:02:56]} 19. a5 {[%emt 0:02:49]} Bxa3 {[%emt 0:01:53]} 20. Rxa3 {[%emt 0:01:39]} Bb5 {[%emt 0:00:13]} 21. Qd1 {[%emt 0:01:37]} Bxf1 {[%emt 0:00:28]} 22. Qxf1 {[%emt 0:02:07]} Rc8 {[%emt 0:02:11]} 23. Qd3 {[%emt 0:08:48]} Qh4 {[%emt 0:13:46]} 24. Ra1 {[%emt 0:10:14]} Rc6 {[%emt 0:02:39]} 25. Nd4 {[%emt 0:03:15]} Rc7 {[%emt 0:05:42]} 26. Nf3 {[%emt 0:06:54]} Qe7 {[%emt 0:00:36]} 27. c3 {[%emt 0:00:41]} Rfc8 {[%emt 0:01:45]} 28. Kh2 {[%emt 0:05:00]} Qd7 {[%emt 0:01:33]} 29. Bb6 {[%emt 0:02:25]} Rc6 {[%emt 0:04:27]} 30. Qe3 {[%emt 0:05:50]} Nc5 {[%emt 0:02:59]} 31. Ba7 {[%emt 0:08:09]} Ne4 {[%emt 0:02:29]} 32. Ra3 {[%emt 0:00:51]} Rc4 {[%emt 0:05:01]} 33. Nd2 {[%emt 0:01:24]} Nxd2 {[%emt 0:01:49]} 34. Qxd2 {[%emt 0:00:01]} Qb5 {[%emt 0:00:33]} 35. Bd4 {[%emt 0:00:19]} Ra4 {[%emt 0:01:35]} 36. Rxa4 {[%emt 0:00:15]} Qxa4 {[%emt 0:00:05]} 37. b4 {[%emt 0:00:12]} Qb3 {[%emt 0:01:33]} 38. Qd3 {[%emt 0:01:05]} Rc4 {[%emt 0:03:21]} 39. Qd2 {[%emt 0:00:36]} Qb1 {[%emt 0:04:04]} 1/2-1/2

[Event "Polish Youth G18 Championship 2023"]
[Site "Jastrzebia Gora"]
[Date "2023.03.18"]
[Round "8.9"]
[White "Samol, Julia"]
[Black "Uliasz, Katarzyna"]
[Result "0-1"]
[ECO "B52"]
[WhiteElo "1374"]
[BlackElo "1670"]
[Annotator "NA RC COMBH"]
[PlyCount "106"]
[EventDate "2023.03.11"]
[EventType "swiss"]
[EventCountry "POL"]
[SourceTitle "playchess.com"]
[Source "ChessBase"]
[SourceQuality "1"]
[TimeControl "40/5400+30:1800+30"]

1. e4 {[%emt 0:00:03]} c5 {[%emt 0:00:30]} 2. Nf3 {[%emt 0:00:09]} d6 {[%emt 0:00:04]} 3. Bb5+ {[%emt 0:00:31]} Bd7 {[%emt 0:00:24]} 4. Bxd7+ {[%emt 0:00:05]} Qxd7 {[%emt 0:00:06]} 5. c4 {[%emt 0:00:52]} Nc6 {[%emt 0:00:55]} 6. Nc3 {[%emt 0:00:33]} Nf6 {[%emt 0:03:14]} 7. d4 {[%emt 0:00:54]} cxd4 {[%emt 0:00:05]} 8. Nxd4 {[%emt 0:00:05]} e6 {[%emt 0:01:33]} 9. Be3 {[%emt 0:04:12]} Be7 {[%emt 0:02:16]} 10. O-O {[%emt 0:00:32]} O-O {[%emt 0:01:25]} 11. f3 {[%emt 0:02:04]} Rac8 {[%emt 0:03:28]} 12. b3 {[%emt 0:02:08]} Rfd8 {[%emt 0:02:50]} 13. Rc1 {[%emt 0:17:54]} Ne8 {[%emt 0:13:09]} 14. Qd2 {[%emt 0:08:51]} Bf6 {[%emt 0:04:41]} 15. Rfd1 {[%emt 0:01:07]} Nxd4 {[%emt 0:12:24]} 16. Bxd4 {[%emt 0:00:12]} Bxd4+ {[%emt 0:00:04]} 17. Qxd4 {[%emt 0:00:09]} b6 {[%emt 0:00:24]} 18. Qe3 {[%emt 0:16:26]} Qb7 {[%emt 0:10:52]} 19. Rd4 {[%emt 0:08:33]} a6 {[%emt 0:12:49]} 20. Rcd1 {[%emt 0:02:36]} Rc5 {[%emt 0:03:06]} 21. Na4 {[%emt 0:02:24]} Rc6 {[%emt 0:00:24]} 22. Nc3 {[%emt 0:01:32]} Rdc8 {[%emt 0:02:12]} 23. R4d3 {[%emt 0:04:52]} Qc7 {[%emt 0:04:06]} 24. Ne2 {[%emt 0:04:09]} b5 {[%emt 0:02:21]} 25. cxb5 {[%emt 0:03:47]} axb5 {[%emt 0:05:12]} 26. Nd4 {[%emt 0:01:17]} Rb6 {[%emt 0:00:40]} 27. R3d2 {[%emt 0:01:29]} Qa7 {[%emt 0:07:48]} 28. Nxb5 {[%emt 0:04:06]} Qb8 {[%emt 0:02:12]} 29. Nc3 {[%emt 0:00:30]} Rbc6 {[%emt 0:01:12]} 30. Na4 {[%emt 0:01:17]} Qb4 {[%emt 0:00:55]} 31. Qd4 {[%emt 0:01:42]} Qa5 {[%emt 0:01:24]} 32. Qd3 {[%emt 0:01:24]} Qa7+ {[%emt 0:00:33]} 33. Kh1 {[%emt 0:00:30]} Rc1 {[%emt 0:01:08]} 34. Rxc1 {[%emt 0:01:42]} Rxc1+ {[%emt 0:00:02]} 35. Rd1 {[%emt 0:00:05]} Rc7 {[%emt 0:00:47]} 36. h3 {[%emt 0:00:56]} Qf2 {[%emt 0:01:11]} 37. Qd2 {[%emt 0:03:01]} Qa7 {[%emt 0:00:20]} 38. Rc1 {[%emt 0:00:42]} h6 {[%emt 0:01:03]} 39. Rxc7 {[%emt 0:00:22]} Qxc7 {[%emt 0:00:04]} 40. Qc3 {[%emt 0:00:00]} Qb7 {[%emt 0:00:00]} 41. Qc1 {[%emt 0:14:33]} Nf6 {[%emt 0:04:44]} 42. Nc3 {[%emt 0:01:20]} Qc7 {[%emt 0:04:59]} 43. Ne2 {[%emt 0:00:42]} Qa5 {[%emt 0:00:59]} 44. Qc8+ {[%emt 0:05:56]} Kh7 {[%emt 0:00:16]} 45. Qc2 {[%emt 0:00:16]} g6 {[%emt 0:04:33]} 46. Kh2 {[%emt 0:03:02]} Qe5+ {[%emt 0:02:22]} 47. Kg1 {[%emt 0:01:44]} Nh5 {[%emt 0:06:22]} 48. a4 {[%emt 0:01:25]} d5 {[%emt 0:01:51]} 49. exd5 {[%emt 0:00:28]} Qe3+ {[%emt 0:01:12]} 50. Kf1 {[%emt 0:01:27]} exd5 {[%emt 0:00:41]} 51. Qd1 {[%emt 0:02:16]} d4 {[%emt 0:01:11]} 52. Qxd4 {[%emt 0:01:51]} Ng3+ {[%emt 0:00:12]} 53. Nxg3 {[%emt 0:01:08]} Qxd4 {[%emt 0:00:04]} 0-1

[Event "Polish Youth G18 Championship 2023"]
[Site "Jastrzebia Gora"]
[Date "2023.03.18"]
[Round "8.10"]
[White "Krzyzosiak, Anna"]
[Black "Labedz, Gabriela"]
[Result "1-0"]
[ECO "A08"]
[WhiteElo "1503"]
[BlackElo "1425"]
[Annotator "NA RC COMBH"]
[PlyCount "97"]
[EventDate "2023.03.11"]
[EventType "swiss"]
[EventCountry "POL"]
[SourceTitle "playchess.com"]
[Source "ChessBase"]
[SourceQuality "1"]
[TimeControl "40/5400+30:1800+30"]

1. Nf3 {[%emt 0:00:02]} d5 {[%emt 0:00:13]} 2. g3 {[%emt 0:00:11]} c5 {[%emt 0:00:39]} 3. Bg2 {[%emt 0:00:15]} Nc6 {[%emt 0:01:06]} 4. O-O {[%emt 0:00:22]} Nf6 {[%emt 0:04:38]} 5. d3 {[%emt 0:00:22]} e5 {[%emt 0:04:50]} 6. Nbd2 {[%emt 0:01:49]} Be7 {[%emt 0:03:26]} 7. e4 {[%emt 0:02:22]} O-O {[%emt 0:04:02]} 8. Re1 {[%emt 0:08:35]} d4 {[%emt 0:04:09]} 9. Nc4 {[%emt 0:02:27]} Qc7 {[%emt 0:02:35]} 10. a4 {[%emt 0:02:33]} Bd7 {[%emt 0:07:45]} 11. Nh4 {[%emt 0:08:45]} a6 {[%emt 0:04:06]} 12. f4 {[%emt 0:12:45]} Bd6 {[%emt 0:12:26]} 13. Nf5 {[%emt 0:15:43]} Ne8 {[%emt 0:10:06]} 14. Ncxd6 {[%emt 0:07:34]} Nxd6 {[%emt 0:00:21]} 15. fxe5 {[%emt 0:00:30]} Nxf5 {[%emt 0:03:16]} 16. exf5 {[%emt 0:00:42]} Bxf5 {[%emt 0:01:10]} 17. Bf4 {[%emt 0:01:52]} Qd7 {[%emt 0:03:50]} 18. Qh5 {[%emt 0:17:22]} Nb4 {[%emt 0:05:00]} 19. Be4 {[%emt 0:10:24]} Bxe4 {[%emt 0:04:13]} 20. Rxe4 {[%emt 0:00:07]} Nd5 {[%emt 0:05:50]} 21. Bd2 {[%emt 0:03:28]} Ne3 {[%emt 0:05:42]} 22. Bxe3 {[%emt 0:02:13]} dxe3 {[%emt 0:00:06]} 23. Qe2 {[%emt 0:00:23]} Qc6 {[%emt 0:04:10]} 24. Qxe3 {[%emt 0:00:23]} b5 {[%emt 0:01:17]} 25. a5 {[%emt 0:00:37]} h6 {[%emt 0:00:50]} 26. Rf1 {[%emt 0:00:38]} Qc7 {[%emt 0:01:31]} 27. Rg4 {[%emt 0:00:19]} Kh7 {[%emt 0:01:13]} 28. Qe4+ {[%emt 0:00:55]} Kh8 {[%emt 0:01:11]} 29. Qe1 {[%emt 0:00:35]} Rae8 {[%emt 0:01:16]} 30. Re4 {[%emt 0:00:29]} b4 {[%emt 0:00:48]} 31. Qe3 {[%emt 0:00:40]} Qxa5 {[%emt 0:01:09]} 32. Rh4 {[%emt 0:00:33]} Qb6 {[%emt 0:01:08]} 33. Kg2 {[%emt 0:00:32]} Qc6+ {[%emt 0:01:00]} 34. Kg1 {[%emt 0:00:06]} Re6 {[%emt 0:00:56]} 35. Rc4 {[%emt 0:00:09]} Rfe8 {[%emt 0:01:13]} 36. Qxc5 {[%emt 0:00:18]} Qxc5+ {[%emt 0:00:24]} 37. Rxc5 {[%emt 0:00:05]} Rxe5 {[%emt 0:00:16]} 38. Rxe5 {[%emt 0:00:18]} Rxe5 {[%emt 0:00:03]} 39. Rxf7 {[%emt 0:00:10]} a5 {[%emt 0:01:35]} 40. Kf1 {[%emt 0:00:00]} Kg8 {[%emt 0:00:00]} 41. Rf4 {[%emt 0:03:02]} Rc5 {[%emt 0:03:04]} 42. Rf2 {[%emt 0:03:08]} a4 {[%emt 0:01:10]} 43. Ke1 {[%emt 0:04:05]} Ra5 {[%emt 0:08:47]} 44. Kd2 {[%emt 0:12:04]} g5 {[%emt 0:01:52]} 45. Rf1 {[%emt 0:02:37]} Kg7 {[%emt 0:02:21]} 46. c3 {[%emt 0:04:13]} b3 {[%emt 0:03:50]} 47. c4 {[%emt 0:00:43]} a3 {[%emt 0:02:49]} 48. Kc3 {[%emt 0:02:26]} axb2 {[%emt 0:01:13]} 49. Rb1 {[%emt 0:00:22]} 1-0

[Event "Polish Youth G18 Championship 2023"]
[Site "Jastrzebia Gora"]
[Date "2023.03.18"]
[Round "8.11"]
[White "Szczotka, Matylda"]
[Black "Gaczol, Julia"]
[Result "1/2-1/2"]
[ECO "B42"]
[WhiteElo "1451"]
[BlackElo "1419"]
[Annotator "NA RC COMBH"]
[PlyCount "91"]
[EventDate "2023.03.11"]
[EventType "swiss"]
[EventCountry "POL"]
[SourceTitle "playchess.com"]
[Source "ChessBase"]
[SourceQuality "1"]
[TimeControl "40/5400+30:1800+30"]

1. e4 {[%emt 0:00:02]} c5 {[%emt 0:00:18]} 2. Nf3 {[%emt 0:00:04]} e6 {[%emt 0:00:17]} 3. d4 {[%emt 0:00:06]} cxd4 {[%emt 0:00:22]} 4. Nxd4 {[%emt 0:00:02]} a6 {[%emt 0:00:06]} 5. Bd3 {[%emt 0:00:32]} Bc5 {[%emt 0:00:11]} 6. Nb3 {[%emt 0:02:16]} Ba7 {[%emt 0:00:13]} 7. Nc3 {[%emt 0:00:54]} Nc6 {[%emt 0:01:59]} 8. O-O {[%emt 0:02:49]} Nge7 {[%emt 0:00:19]} 9. Re1 {[%emt 0:02:13]} e5 {[%emt 0:02:46]} 10. Be3 {[%emt 0:17:14]} d6 {[%emt 0:02:35]} 11. Bxa7 {[%emt 0:04:01]} Rxa7 {[%emt 0:01:07]} 12. Qd2 {[%emt 0:02:14]} O-O {[%emt 0:05:10]} 13. Rad1 {[%emt 0:01:47]} Be6 {[%emt 0:13:54]} 14. Bf1 {[%emt 0:09:48]} Nc8 {[%emt 0:04:00]} 15. Ne2 {[%emt 0:15:54]} b5 {[%emt 0:03:42]} 16. Ng3 {[%emt 0:04:56]} Rd7 {[%emt 0:05:52]} 17. f4 {[%emt 0:06:59]} Qb6+ {[%emt 0:04:05]} 18. Kh1 {[%emt 0:00:26]} f6 {[%emt 0:00:16]} 19. f5 {[%emt 0:04:40]} Bf7 {[%emt 0:00:41]} 20. h4 {[%emt 0:01:39]} Rfd8 {[%emt 0:02:04]} 21. Qe2 {[%emt 0:01:09]} d5 {[%emt 0:02:45]} 22. a3 {[%emt 0:06:35]} dxe4 {[%emt 0:11:11]} 23. Rxd7 {[%emt 0:01:06]} Rxd7 {[%emt 0:00:09]} 24. Nxe4 {[%emt 0:00:23]} Nd4 {[%emt 0:04:46]} 25. Nxd4 {[%emt 0:01:09]} Qxd4 {[%emt 0:02:41]} 26. Qg4 {[%emt 0:02:24]} Kh8 {[%emt 0:01:13]} 27. c3 {[%emt 0:00:58]} Qa7 {[%emt 0:02:40]} 28. Rd1 {[%emt 0:04:21]} Rxd1 {[%emt 0:06:29]} 29. Qxd1 {[%emt 0:00:02]} Qe7 {[%emt 0:01:37]} 30. a4 {[%emt 0:01:45]} Be8 {[%emt 0:04:05]} 31. axb5 {[%emt 0:02:48]} axb5 {[%emt 0:02:17]} 32. c4 {[%emt 0:00:53]} bxc4 {[%emt 0:00:28]} 33. Bxc4 {[%emt 0:00:06]} g6 {[%emt 0:01:07]} 34. Qd5 {[%emt 0:01:28]} Kg7 {[%emt 0:01:38]} 35. fxg6 {[%emt 0:01:10]} Bxg6 {[%emt 0:00:50]} 36. Qg8+ {[%emt 0:02:53]} Kh6 {[%emt 0:00:07]} 37. Nxf6 {[%emt 0:00:29]} Qxf6 {[%emt 0:00:31]} 38. Qxc8 {[%emt 0:00:04]} Qxh4+ {[%emt 0:00:37]} 39. Kg1 {[%emt 0:00:57]} Qd4+ {[%emt 0:00:42]} 40. Kh2 {[%emt 0:00:00]} Qxb2 {[%emt 0:00:00]} 41. Qh3+ {[%emt 0:08:26]} Kg7 {[%emt 0:02:39]} 42. Qd7+ {[%emt 0:00:54]} Kf6 {[%emt 0:10:59]} 43. Qd8+ {[%emt 0:07:35]} Kg7 {[%emt 0:16:15]} 44. Qe7+ {[%emt 0:00:56]} Kh6 {[%emt 0:00:10]} 45. Qh4+ {[%emt 0:00:08]} Kg7 {[%emt 0:00:09]} 46. Qe7+ {[%emt 0:00:02]} 1/2-1/2

[Event "Polish Youth G18 Championship 2023"]
[Site "Jastrzebia Gora"]
[Date "2023.03.18"]
[Round "8.12"]
[White "Anyz, Monika"]
[Black "Lukasik, Zuzanna"]
[Result "0-1"]
[ECO "B62"]
[WhiteElo "1755"]
[BlackElo "1781"]
[Annotator "NA RC COMBH"]
[PlyCount "108"]
[EventDate "2023.03.11"]
[EventType "swiss"]
[EventCountry "POL"]
[SourceTitle "playchess.com"]
[Source "ChessBase"]
[SourceQuality "1"]
[TimeControl "40/5400+30:1800+30"]

1. e4 {[%emt 0:00:02]} c5 {[%emt 0:00:43]} 2. Nf3 {[%emt 0:00:05]} Nc6 {[%emt 0:00:34]} 3. d4 {[%emt 0:00:06]} cxd4 {[%emt 0:00:17]} 4. Nxd4 {[%emt 0:00:09]} Nf6 {[%emt 0:00:17]} 5. Nc3 {[%emt 0:00:08]} d6 {[%emt 0:00:05]} 6. Bg5 {[%emt 0:00:09]} e6 {[%emt 0:00:20]} 7. Bb5 {[%emt 0:00:09]} Bd7 {[%emt 0:02:09]} 8. Bxc6 {[%emt 0:00:14]} Bxc6 {[%emt 0:07:08]} 9. Qe2 {[%emt 0:12:16]} Be7 {[%emt 0:05:46]} 10. Rd1 {[%emt 0:12:36]} Qa5 {[%emt 0:08:18]} 11. Bd2 {[%emt 0:05:49]} Qb6 {[%emt 0:05:22]} 12. Nb3 {[%emt 0:04:28]} O-O {[%emt 0:03:34]} 13. O-O {[%emt 0:01:29]} a6 {[%emt 0:01:25]} 14. Kh1 {[%emt 0:05:26]} Qc7 {[%emt 0:04:36]} 15. f4 {[%emt 0:03:53]} b5 {[%emt 0:04:01]} 16. a3 {[%emt 0:05:24]} Kh8 {[%emt 0:09:29]} 17. Nd4 {[%emt 0:03:47]} Bb7 {[%emt 0:05:57]} 18. Rde1 {[%emt 0:01:50]} Rac8 {[%emt 0:06:11]} 19. Nf3 {[%emt 0:12:04]} Qc4 {[%emt 0:03:32]} 20. e5 {[%emt 0:05:36]} Qxe2 {[%emt 0:01:29]} 21. Rxe2 {[%emt 0:00:08]} dxe5 {[%emt 0:03:07]} 22. Nxe5 {[%emt 0:01:35]} Nd5 {[%emt 0:02:17]} 23. f5 {[%emt 0:08:37]} Kg8 {[%emt 0:04:24]} 24. h3 {[%emt 0:06:26]} Nxc3 {[%emt 0:08:49]} 25. Bxc3 {[%emt 0:00:14]} Bd5 {[%emt 0:01:34]} 26. Rd1 {[%emt 0:05:01]} Rfd8 {[%emt 0:04:17]} 27. Ba5 {[%emt 0:02:55]} Bxg2+ {[%emt 0:00:33]} 28. Kxg2 {[%emt 0:00:52]} Rxd1 {[%emt 0:00:05]} 29. Nd3 {[%emt 0:00:39]} Bf6 {[%emt 0:02:00]} 30. Be1 {[%emt 0:02:03]} Rb1 {[%emt 0:02:46]} 31. b3 {[%emt 0:01:01]} Ra1 {[%emt 0:00:50]} 32. Bb4 {[%emt 0:00:29]} Ra2 {[%emt 0:00:54]} 33. Bc5 {[%emt 0:00:44]} g6 {[%emt 0:01:53]} 34. fxe6 {[%emt 0:00:25]} fxe6 {[%emt 0:00:08]} 35. Kf3 {[%emt 0:00:21]} Kf7 {[%emt 0:00:29]} 36. Ke4 {[%emt 0:00:15]} Kg7 {[%emt 0:01:15]} 37. Nf4 {[%emt 0:00:50]} Rc6 {[%emt 0:00:34]} 38. Nd3 {[%emt 0:00:09]} Ra1 {[%emt 0:00:48]} 39. Rf2 {[%emt 0:00:57]} Rh1 {[%emt 0:01:08]} 40. Nf4 {[%emt 0:00:00]} Re1+ {[%emt 0:00:00]} 41. Be3 {[%emt 0:02:07]} Rd6 {[%emt 0:16:46]} 42. Nd3 {[%emt 0:01:31]} Rxe3+ {[%emt 0:00:22]} 43. Kxe3 {[%emt 0:00:31]} Bd4+ {[%emt 0:00:06]} 44. Ke2 {[%emt 0:01:30]} Bxf2 {[%emt 0:00:05]} 45. Nxf2 {[%emt 0:00:26]} Rd5 {[%emt 0:01:45]} 46. Ke3 {[%emt 0:00:34]} h5 {[%emt 0:01:41]} 47. c4 {[%emt 0:00:23]} bxc4 {[%emt 0:00:26]} 48. bxc4 {[%emt 0:00:05]} Ra5 {[%emt 0:00:24]} 49. Kd4 {[%emt 0:00:18]} Rxa3 {[%emt 0:00:36]} 50. c5 {[%emt 0:00:10]} Kf6 {[%emt 0:02:04]} 51. Ne4+ {[%emt 0:01:04]} Ke7 {[%emt 0:00:09]} 52. c6 {[%emt 0:00:43]} Ra4+ {[%emt 0:00:10]} 53. Ke5 {[%emt 0:00:36]} Rxe4+ {[%emt 0:00:09]} 54. Kxe4 {[%emt 0:00:04]} Kd6 {[%emt 0:00:07]} 0-1

[Event "Polish Youth G18 Championship 2023"]
[Site "Jastrzebia Gora"]
[Date "2023.03.18"]
[Round "8.13"]
[White "Lochina, Justyna"]
[Black "Trybus, Dominika"]
[Result "1/2-1/2"]
[ECO "B18"]
[WhiteElo "1645"]
[BlackElo "1543"]
[Annotator "NA RC COMBH"]
[PlyCount "61"]
[EventDate "2023.03.11"]
[EventType "swiss"]
[EventCountry "POL"]
[SourceTitle "playchess.com"]
[Source "ChessBase"]
[SourceQuality "1"]
[TimeControl "40/5400+30:1800+30"]

1. e4 {[%emt 0:00:03]} c6 {[%emt 0:00:04]} 2. d4 {[%emt 0:00:36]} d5 {[%emt 0:00:04]} 3. Nc3 {[%emt 0:01:25]} dxe4 {[%emt 0:00:06]} 4. Nxe4 {[%emt 0:00:09]} Bf5 {[%emt 0:00:04]} 5. Ng3 {[%emt 0:01:31]} Bg6 {[%emt 0:00:10]} 6. h4 {[%emt 0:02:35]} h6 {[%emt 0:00:05]} 7. h5 {[%emt 0:01:51]} Bh7 {[%emt 0:00:11]} 8. Nf3 {[%emt 0:01:06]} Nd7 {[%emt 0:02:14]} 9. Bd3 {[%emt 0:03:06]} Bxd3 {[%emt 0:00:36]} 10. Qxd3 {[%emt 0:00:11]} Ngf6 {[%emt 0:00:33]} 11. Bd2 {[%emt 0:02:21]} e6 {[%emt 0:01:02]} 12. O-O-O {[%emt 0:04:42]} Be7 {[%emt 0:00:35]} 13. c4 {[%emt 0:04:16]} O-O {[%emt 0:00:35]} 14. Ne4 {[%emt 0:08:07]} Nxe4 {[%emt 0:03:00]} 15. Qxe4 {[%emt 0:00:15]} b5 {[%emt 0:06:22]} 16. c5 {[%emt 0:17:41]} Qc7 {[%emt 0:09:49]} 17. g4 {[%emt 0:07:12]} Nf6 {[%emt 0:00:19]} 18. Qe5 {[%emt 0:06:29]} Qxe5 {[%emt 0:11:12]} 19. Nxe5 {[%emt 0:00:27]} Rac8 {[%emt 0:00:19]} 20. f4 {[%emt 0:07:04]} Ne4 {[%emt 0:13:16]} 21. Be3 {[%emt 0:06:10]} Rfd8 {[%emt 0:09:55]} 22. Rdg1 {[%emt 0:04:45]} Rd5 {[%emt 0:06:03]} 23. Kc2 {[%emt 0:03:32]} a5 {[%emt 0:01:04]} 24. a3 {[%emt 0:03:04]} a4 {[%emt 0:05:09]} 25. b3 {[%emt 0:04:12]} axb3+ {[%emt 0:01:40]} 26. Kxb3 {[%emt 0:00:05]} f6 {[%emt 0:01:53]} 27. Ng6 {[%emt 0:00:59]} Bd8 {[%emt 0:03:44]} 28. Re1 {[%emt 0:00:38]} Kf7 {[%emt 0:05:41]} 29. Rh2 {[%emt 0:02:06]} Ba5 {[%emt 0:01:47]} 30. Rc1 {[%emt 0:01:50]} Ra8 {[%emt 0:04:03]} 31. Re2 {[%emt 0:00:36]} 1/2-1/2